[Event "Championnat d'Europe de Blitz"]
[Date "2024.12.09"]
[White "Arnaudov, G. Petar"]
[Black "Van Foreest, Lucas"]
[WhiteElo "2401"]
[BlackElo "2520"]
[Round "4.11"]
[Result "1/2-1/2"]
[TimeControl "180+2"]

1. Nf3 {[%emt 00:00:03] [%clk 00:03:01]} d5 {[%emt 00:00:03] [%clk 00:03:03]} 2.
g3 {[%emt 00:00:03] [%clk 00:02:59]} b6 {[%clk 00:03:05]} 3. Bg2 {[%emt
00:00:04] [%clk 00:02:57]} Bb7 {[%clk 00:03:06]} 4. O-O {[%emt 00:00:02] [%clk
00:02:57]} e6 {[%emt 00:00:01] [%clk 00:03:07]} 5. d3 {[%emt 00:00:02] [%clk
00:02:57]} Nf6 {[%emt 00:00:04] [%clk 00:03:05]} 6. Nbd2 {[%emt 00:00:19] [%clk
00:02:40]} Nbd7 {[%emt 00:00:02] [%clk 00:03:05]} 7. e4 {[%emt 00:00:09] [%clk
00:02:33]} h6 {[%emt 00:00:06] [%clk 00:03:02]} 8. exd5 {[%emt 00:00:20] [%clk
00:02:16]} Bxd5 {[%emt 00:00:05] [%clk 00:02:58]} 9. b3 {[%emt 00:00:08] [%clk
00:02:10]} Be7 {[%emt 00:00:01] [%clk 00:02:58]} 10. Bb2 {[%emt 00:00:01] [%clk
00:02:12]} c5 {[%emt 00:00:02] [%clk 00:02:58]} 11. a4 {[%emt 00:00:03] [%clk
00:02:11]} O-O {[%emt 00:00:01] [%clk 00:02:58]} 12. Qe2 {[%emt 00:00:04] [%clk
00:02:11]} Qc7 {[%emt 00:00:02] [%clk 00:02:57]} 13. Ne5 {[%emt 00:00:13] [%clk
00:01:59]} Bxg2 {[%emt 00:00:05] [%clk 00:02:55]} 14. Kxg2 {[%emt 00:00:01]
[%clk 00:02:00]} Nxe5 {[%emt 00:00:25] [%clk 00:02:32]} 15. Bxe5 {[%emt
00:00:03] [%clk 00:02:00]} Qd7 {[%emt 00:00:01] [%clk 00:02:32]} 16. f4 {[%emt
00:00:09] [%clk 00:01:53]} Nd5 {[%emt 00:00:09] [%clk 00:02:24]} 17. Nf3 {[%emt
00:00:03] [%clk 00:01:52]} Bf6 {[%emt 00:00:04] [%clk 00:02:22]} 18. Bxf6 {[%emt
00:00:16] [%clk 00:01:39]} Nxf6 {[%emt 00:00:01] [%clk 00:02:23]} 19. Ne5 {[%emt
00:00:02] [%clk 00:01:40]} Qc7 {[%emt 00:00:04] [%clk 00:02:20]} 20. Qf3 {[%emt
00:00:01] [%clk 00:01:40]} Nd7 {[%emt 00:00:06] [%clk 00:02:16]} 21. Nxd7 {[%emt
00:00:24] [%clk 00:01:19]} Qxd7 {[%emt 00:00:01] [%clk 00:02:17]} 22. a5 {[%emt
00:00:01] [%clk 00:01:21]} b5 {[%emt 00:00:03] [%clk 00:02:15]} 23. a6 {[%emt
00:00:03] [%clk 00:01:21]} Rab8 {[%emt 00:00:02] [%clk 00:02:14]} 24. Rfe1
{[%emt 00:00:02] [%clk 00:01:21]} Rb6 {[%emt 00:00:03] [%clk 00:02:14]} 25. Re5
{[%emt 00:00:09] [%clk 00:01:14]} Rc8 {[%emt 00:00:05] [%clk 00:02:10]} 26. h4
{[%emt 00:00:17] [%clk 00:00:59]} Qd4 {[%emt 00:00:02] [%clk 00:02:10]} 27. Rae1
{[%emt 00:00:09] [%clk 00:00:52]} Rxa6 {[%emt 00:00:12] [%clk 00:02:00]} 28. Qb7
{[%emt 00:00:16] [%clk 00:00:38]} Rac6 {[%emt 00:00:22] [%clk 00:01:40]} 29.
Qxb5 {[%emt 00:00:07] [%clk 00:00:32]} Rb6 {[%emt 00:00:04] [%clk 00:01:38]} 30.
Qc4 {[%emt 00:00:06] [%clk 00:00:29]} a5 {[%emt 00:00:12] [%clk 00:01:29]} 31.
f5 {[%emt 00:00:07] [%clk 00:00:24]} Qxc4 {[%emt 00:00:07] [%clk 00:01:23]} 32.
dxc4 {[%clk 00:00:25]} exf5 {[%emt 00:00:01] [%clk 00:01:24]} 33. Ra1 {[%emt
00:00:10] [%clk 00:00:18]} Re6 {[%emt 00:00:14] [%clk 00:01:11]} 34. Rxf5 {[%emt
00:00:04] [%clk 00:00:16]} Re2+ {[%emt 00:00:04]} 35. Rf2 {[%clk 00:00:18]} Re3
{[%emt 00:00:02] [%clk 00:01:10]} 36. Rxa5 {[%emt 00:00:03] [%clk 00:00:17]} h5
{[%emt 00:00:44] [%clk 00:00:27]} 37. Ra7 {[%emt 00:00:01] [%clk 00:00:18]} f6
{[%emt 00:00:01] [%clk 00:00:28]} 38. Rd7 {[%emt 00:00:02] [%clk 00:00:18]} Kh7
{[%emt 00:00:02] [%clk 00:00:26]} 39. Rd3 {[%emt 00:00:14] [%clk 00:00:08]} Rxd3
{[%emt 00:00:05] [%clk 00:00:23]} 40. cxd3 {[%emt 00:00:01] [%clk 00:00:09]} Rb8
{[%clk 00:00:25]} 41. Rf5 {[%emt 00:00:01] [%clk 00:00:10]} Rxb3 {[%emt
00:00:01] [%clk 00:00:26]} 42. Rxh5+ {[%clk 00:00:11]} Kg6 {[%emt 00:00:01]
[%clk 00:00:27]} 43. Rxc5 {[%clk 00:00:13]} Rxd3 {[%emt 00:00:01] [%clk
00:00:28]} 44. h5+ {[%emt 00:00:01] [%clk 00:00:14]} Kh6 {[%emt 00:00:01] [%clk
00:00:29]} 45. Kh3 {[%emt 00:00:03] [%clk 00:00:12]} g6 {[%emt 00:00:05] [%clk
00:00:26]} 46. hxg6 {[%emt 00:00:02] [%clk 00:00:12]} Kxg6 {[%emt 00:00:02]} 47.
Rc8 {[%clk 00:00:13]} f5 {[%emt 00:00:03] [%clk 00:00:26]} 48. Kg2 {[%emt
00:00:04] [%clk 00:00:11]} Rc3 {[%emt 00:00:01] [%clk 00:00:27]} 49. Kf2 {[%emt
00:00:02] [%clk 00:00:11]} Kf6 {[%emt 00:00:01] [%clk 00:00:28]} 50. c5 {[%emt
00:00:02] [%clk 00:00:11]} Ke5 {[%emt 00:00:01] [%clk 00:00:29]} 51. c6 {[%emt
00:00:01] [%clk 00:00:12]} Kd6 {[%emt 00:00:03] [%clk 00:00:27]} 52. Rf8 {[%emt
00:00:02] [%clk 00:00:12]} Ke6 {[%emt 00:00:07] [%clk 00:00:22]} 53. Rc8 {[%emt
00:00:04] [%clk 00:00:10]} Kd6 {[%emt 00:00:02] [%clk 00:00:24]} 54. Rd8+ {[%emt
00:00:02] [%clk 00:00:10]} Ke6 {[%emt 00:00:02] [%clk 00:00:24]} 55. Rc8 {[%emt
00:00:03] [%clk 00:00:08]} 1/2-1/2

[Site "Europe Echecs"]

[Event "Championnat d'Europe de Blitz"]
[Date "2024.12.09"]
[White "Fridman, Daniel"]
[Black "Grigoriants, Sergey"]
[WhiteElo "2571"]
[BlackElo "2542"]
[Round "4.12"]
[Result "0-1"]
[TimeControl "180+2"]

1. Nf3 {[%clk 00:03:03]} d5 {[%emt 00:00:03] [%clk 00:03:02]} 2. g3 {[%clk
00:03:03]} g6 {[%emt 00:00:04] [%clk 00:03:01]} 3. Bg2 {[%emt 00:00:03] [%clk
00:03:02]} Bg7 {[%emt 00:00:01] [%clk 00:03:01]} 4. d4 {[%emt 00:00:02] [%clk
00:03:02]} Nf6 {[%emt 00:00:05] [%clk 00:02:58]} 5. c4 {[%emt 00:00:01] [%clk
00:03:03]} c6 {[%emt 00:00:19] [%clk 00:02:43]} 6. Nbd2 {[%emt 00:00:01] [%clk
00:03:02]} O-O {[%emt 00:00:03] [%clk 00:02:42]} 7. O-O {[%emt 00:00:03] [%clk
00:03:02]} Bf5 {[%emt 00:00:13] [%clk 00:02:31]} 8. b3 {[%emt 00:00:01] [%clk
00:03:02]} Qa5 {[%emt 00:00:15] [%clk 00:02:18]} 9. Bb2 {[%emt 00:00:10] [%clk
00:02:55]} Nbd7 {[%emt 00:00:08] [%clk 00:02:11]} 10. a3 {[%emt 00:00:21] [%clk
00:02:37]} Rfe8 {[%emt 00:00:21] [%clk 00:01:52]} 11. Rc1 {[%emt 00:00:03] [%clk
00:02:35]} Ne4 {[%emt 00:00:30] [%clk 00:01:25]} 12. Nxe4 {[%emt 00:00:42] [%clk
00:01:54]} Bxe4 {[%emt 00:00:02] [%clk 00:01:25]} 13. Bh3 {[%emt 00:00:02] [%clk
00:01:54]} Nf6 {[%emt 00:00:33] [%clk 00:00:54]} 14. Ne5 {[%emt 00:00:02] [%clk
00:01:54]} Rad8 {[%emt 00:00:12] [%clk 00:00:45]} 15. b4 {[%emt 00:00:42] [%clk
00:01:14]} Qa6 {[%emt 00:00:07] [%clk 00:00:39]} 16. c5 {[%emt 00:00:02] [%clk
00:01:15]} Bf5 {[%emt 00:00:13] [%clk 00:00:28]} 17. Bxf5 {[%emt 00:00:02] [%clk
00:01:15]} gxf5 {[%emt 00:00:01] [%clk 00:00:29]} 18. a4 {[%emt 00:00:27] [%clk
00:00:50]} e6 {[%emt 00:00:04] [%clk 00:00:27]} 19. Re1 {[%emt 00:00:12] [%clk
00:00:40]} Nd7 {[%emt 00:00:02] [%clk 00:00:27]} 20. Nf3 {[%emt 00:00:02] [%clk
00:00:39]} b5 {[%emt 00:00:07] [%clk 00:00:22]} 21. Ra1 {[%emt 00:00:03] [%clk
00:00:39]} Rb8 {[%emt 00:00:10] [%clk 00:00:14]} 22. axb5 {[%emt 00:00:02] [%clk
00:00:38]} Qxb5 {[%emt 00:00:02] [%clk 00:00:15]} 23. Rxa7 {[%emt 00:00:01]
[%clk 00:00:38]} Qxb4 {[%emt 00:00:06] [%clk 00:00:11]} 24. Ba3 {[%emt 00:00:10]
[%clk 00:00:30]} Qc3 {[%emt 00:00:02] [%clk 00:00:11]} 25. e3 {[%emt 00:00:12]
[%clk 00:00:21]} Red8 {[%emt 00:00:02] [%clk 00:00:11]} 26. Qe2 {[%emt 00:00:09]
[%clk 00:00:14]} Ra8 {[%emt 00:00:04] [%clk 00:00:08]} 27. Rxa8 {[%emt 00:00:02]
[%clk 00:00:14]} Rxa8 {[%clk 00:00:10]} 28. Bc1 {[%emt 00:00:01] [%clk
00:00:15]} Ra1 {[%emt 00:00:06] [%clk 00:00:06]} 29. Bb2 {[%emt 00:00:01] [%clk
00:00:15]} Rxe1+ {[%emt 00:00:02] [%clk 00:00:06]} 30. Nxe1 {[%emt 00:00:01]
[%clk 00:00:16]} Qb3 {[%emt 00:00:03] [%clk 00:00:06]} 31. Nd3 {[%emt 00:00:01]
[%clk 00:00:16]} Qb5 {[%emt 00:00:02] [%clk 00:00:07]} 32. Qd2 {[%emt 00:00:01]
[%clk 00:00:17]} Nf6 {[%emt 00:00:01] [%clk 00:00:07]} 33. f3 {[%clk 00:00:18]}
Nd7 {[%emt 00:00:02] [%clk 00:00:08]} 34. Kf2 {[%emt 00:00:05] [%clk 00:00:15]}
Qc4 {[%clk 00:00:09]} 35. Qc3 {[%emt 00:00:02] [%clk 00:00:15]} Qb5 {[%emt
00:00:02] [%clk 00:00:10]} 36. Ke2 {[%clk 00:00:16]} h6 {[%emt 00:00:06] [%clk
00:00:06]} 37. Qb4 {[%emt 00:00:02] [%clk 00:00:14]} Qa6 {[%emt 00:00:03] [%clk
00:00:07]} 38. Qb3 {[%clk 00:00:16]} Kf8 {[%emt 00:00:03] [%clk 00:00:06]} 39.
Bc3 {[%emt 00:00:03] [%clk 00:00:14]} Ke7 {[%emt 00:00:01] [%clk 00:00:07]} 40.
Bd2 {[%emt 00:00:03] [%clk 00:00:14]} Bf6 {[%emt 00:00:02] [%clk 00:00:06]} 41.
Kf2 {[%emt 00:00:03] [%clk 00:00:14]} Bg7 {[%clk 00:00:08]} 42. Nb2 {[%emt
00:00:01] [%clk 00:00:14]} e5 {[%emt 00:00:04] [%clk 00:00:06]} 43. Bc3 {[%emt
00:00:04] [%clk 00:00:13]} e4 {[%emt 00:00:02] [%clk 00:00:06]} 44. f4 {[%emt
00:00:02] [%clk 00:00:12]} h5 {[%emt 00:00:01] [%clk 00:00:07]} 45. Qa4 {[%emt
00:00:02] [%clk 00:00:12]} Qxa4 {[%emt 00:00:04] [%clk 00:00:04]} 46. Nxa4
{[%emt 00:00:02] [%clk 00:00:13]} Kd8 {[%emt 00:00:02] [%clk 00:00:04]} 47. Ba5+
{[%clk 00:00:14]} Kc8 {[%clk 00:00:05]} 48. Kg2 {[%emt 00:00:03] [%clk
00:00:14]} Bf6 {[%clk 00:00:07]} 49. h3 {[%emt 00:00:02] [%clk 00:00:13]} Kb7
{[%emt 00:00:02] [%clk 00:00:08]} 50. Be1 {[%emt 00:00:03] [%clk 00:00:11]} Ka6
{[%emt 00:00:03] [%clk 00:00:09]} 51. Nc3 {[%clk 00:00:12]} Nf8 {[%emt 00:00:02]
[%clk 00:00:08]} 52. g4 {[%emt 00:00:02] [%clk 00:00:13]} hxg4 {[%emt 00:00:01]
[%clk 00:00:09]} 53. hxg4 {[%clk 00:00:14]} fxg4 {[%emt 00:00:01] [%clk
00:00:10]} 54. Kg3 {[%clk 00:00:15]} Kb7 {[%emt 00:00:09] [%clk 00:00:04]} 55.
Kxg4 {[%emt 00:00:01] [%clk 00:00:15]} Kc7 {[%emt 00:00:01] [%clk 00:00:05]} 56.
Kh5 {[%emt 00:00:09] [%clk 00:00:08]} Ne6 {[%emt 00:00:02] [%clk 00:00:06]} 57.
Ne2 {[%emt 00:00:02] [%clk 00:00:07]} Kd7 {[%emt 00:00:02] [%clk 00:00:07]} 58.
Bh4 {[%emt 00:00:04] [%clk 00:00:05]} Ng7+ {[%emt 00:00:05] [%clk 00:00:04]} 59.
Kg4 {[%emt 00:00:01] [%clk 00:00:06]} Bxh4 {[%emt 00:00:01] [%clk 00:00:05]} 60.
Kxh4 {[%clk 00:00:06]} Nf5+ {[%clk 00:00:07]} 61. Kg5 {[%clk 00:00:08]} Nxe3
{[%emt 00:00:01] [%clk 00:00:08]} 62. Kf6 {[%clk 00:00:09]} Ke8 {[%emt 00:00:03]
[%clk 00:00:07]} 63. Ng3 {[%emt 00:00:04] [%clk 00:00:06]} Nc2 {[%emt 00:00:02]
[%clk 00:00:07]} 64. Ne2 {[%emt 00:00:02] [%clk 00:00:07]} e3 {[%emt 00:00:02]
[%clk 00:00:07]} 65. f5 {[%emt 00:00:02] [%clk 00:00:07]} Kf8 {[%emt 00:00:04]
[%clk 00:00:05]} 66. Ke5 {[%emt 00:00:04] [%clk 00:00:05]} Ke7 {[%emt 00:00:01]
[%clk 00:00:06]} 67. f6+ {[%clk 00:00:06]} Kd7 {[%emt 00:00:01] [%clk 00:00:08]}
68. Kf5 {[%clk 00:00:07]} Nb4 {[%emt 00:00:02] [%clk 00:00:07]} 69. Kf4 {[%emt
00:00:01] [%clk 00:00:08]} Ke6 {[%emt 00:00:02] [%clk 00:00:07]} 70. Kxe3 {[%clk
00:00:09]} Kxf6 {[%emt 00:00:01] [%clk 00:00:08]} 71. Nf4 {[%emt 00:00:04] [%clk
00:00:07]} Kf5 {[%emt 00:00:03] [%clk 00:00:08]} 72. Ne2 {[%emt 00:00:01] [%clk
00:00:07]} Kg4 {[%emt 00:00:02] [%clk 00:00:08]} 73. Nc3 {[%emt 00:00:05] [%clk
00:00:04]} f5 {[%emt 00:00:02] [%clk 00:00:08]} 74. Kf2 {[%emt 00:00:01] [%clk
00:00:05]} f4 {[%emt 00:00:03] [%clk 00:00:07]} 75. Ne2 {[%emt 00:00:02] [%clk
00:00:05]} Nc2 {[%emt 00:00:04] [%clk 00:00:06]} 76. Nc1 {[%emt 00:00:02] [%clk
00:00:05]} Nxd4 {[%emt 00:00:02] [%clk 00:00:06]} 77. Nd3 {[%clk 00:00:06]} Kf5
{[%emt 00:00:01] [%clk 00:00:06]} 78. Nb4 {[%emt 00:00:02] [%clk 00:00:07]} 0-1

[Site "Europe Echecs"]

[Event "Championnat d'Europe de Blitz"]
[Date "2024.12.09"]
[White "Mohr, Georg"]
[Black "Quparadze, Giga"]
[WhiteElo "2385"]
[BlackElo "2537"]
[Round "4.13"]
[Result "0-1"]
[TimeControl "180+2"]

1. Nf3 {[%clk 00:03:03]} c5 {[%clk 00:03:04]} 2. c4 {[%emt 00:00:08] [%clk
00:02:58]} Nc6 {[%emt 00:00:01] [%clk 00:03:04]} 3. Nc3 {[%emt 00:00:02] [%clk
00:02:59]} Nf6 {[%clk 00:03:05]} 4. g3 {[%emt 00:00:02] [%clk 00:02:58]} d5
{[%emt 00:00:06] [%clk 00:03:02]} 5. cxd5 {[%clk 00:02:59]} Nxd5 {[%clk
00:03:02]} 6. Bg2 {[%emt 00:00:01] [%clk 00:03:00]} Nc7 {[%emt 00:00:01] [%clk
00:03:03]} 7. O-O {[%emt 00:00:06] [%clk 00:02:57]} e5 {[%emt 00:00:02] [%clk
00:03:03]} 8. d3 {[%emt 00:00:01] [%clk 00:02:58]} Be7 {[%emt 00:00:02] [%clk
00:03:03]} 9. Nd2 {[%emt 00:00:08] [%clk 00:02:52]} Bd7 {[%emt 00:00:01] [%clk
00:03:04]} 10. Nc4 {[%emt 00:00:05] [%clk 00:02:50]} f6 {[%emt 00:00:01] [%clk
00:03:04]} 11. Ne3 {[%emt 00:00:04] [%clk 00:02:48]} O-O {[%emt 00:00:07] [%clk
00:03:00]} 12. Ned5 {[%emt 00:00:04] [%clk 00:02:45]} Nxd5 {[%emt 00:00:05]
[%clk 00:02:57]} 13. Nxd5 {[%clk 00:02:46]} Bd6 {[%emt 00:00:08] [%clk
00:02:52]} 14. Bd2 {[%emt 00:00:07] [%clk 00:02:41]} Kh8 {[%emt 00:00:02] [%clk
00:02:52]} 15. a3 {[%emt 00:00:02] [%clk 00:02:42]} Be6 {[%emt 00:00:04] [%clk
00:02:49]} 16. b4 {[%emt 00:00:07] [%clk 00:02:36]} Rc8 {[%emt 00:00:02] [%clk
00:02:49]} 17. Rb1 {[%emt 00:00:06] [%clk 00:02:33]} b6 {[%emt 00:00:04] [%clk
00:02:47]} 18. Be3 {[%emt 00:00:19] [%clk 00:02:16]} Nd4 {[%emt 00:00:11] [%clk
00:02:38]} 19. Bd2 {[%emt 00:00:17] [%clk 00:02:01]} f5 {[%emt 00:00:07] [%clk
00:02:33]} 20. e3 {[%emt 00:00:15] [%clk 00:01:47]} Nc6 {[%emt 00:00:03] [%clk
00:02:32]} 21. Qa4 {[%emt 00:00:03] [%clk 00:01:47]} Qd7 {[%emt 00:00:21] [%clk
00:02:13]} 22. Rfc1 {[%emt 00:00:02] [%clk 00:01:47]} Rfd8 {[%emt 00:00:09]
[%clk 00:02:07]} 23. bxc5 {[%emt 00:00:33] [%clk 00:01:16]} Bxc5 {[%emt
00:00:02] [%clk 00:02:07]} 24. Nb4 {[%emt 00:00:23] [%clk 00:00:55]} Na5 {[%emt
00:00:02] [%clk 00:02:07]} 25. Qxd7 {[%emt 00:00:06] [%clk 00:00:50]} Rxd7
{[%clk 00:02:08]} 26. Na6 {[%emt 00:00:05] [%clk 00:00:49]} Nb3 {[%emt 00:00:01]
[%clk 00:02:08]} 27. Nxc5 {[%emt 00:00:03] [%clk 00:00:47]} bxc5 {[%emt
00:00:04] [%clk 00:02:05]} 28. Rd1 {[%emt 00:00:09] [%clk 00:00:41]} Rxd3 {[%emt
00:00:04] [%clk 00:02:03]} 29. Be1 {[%clk 00:00:43]} c4 {[%emt 00:00:06] [%clk
00:02:00]} 30. Bf1 {[%emt 00:00:06] [%clk 00:00:38]} Rxd1 {[%emt 00:00:02] [%clk
00:02:00]} 31. Rxd1 {[%clk 00:00:39]} c3 {[%emt 00:00:05] [%clk 00:01:59]} 32.
Bxc3 {[%emt 00:00:14] [%clk 00:00:26]} Rxc3 {[%emt 00:00:02] [%clk 00:02:00]}
33. Rd8+ {[%emt 00:00:01] [%clk 00:00:27]} Bg8 {[%clk 00:02:00]} 34. Ra8 {[%emt
00:00:06] [%clk 00:00:23]} a5 {[%emt 00:00:04] [%clk 00:01:58]} 35. a4 {[%emt
00:00:01] [%clk 00:00:24]} g6 {[%emt 00:00:02] [%clk 00:01:58]} 36. Bb5 {[%emt
00:00:04] [%clk 00:00:23]} Kg7 {[%emt 00:00:02] [%clk 00:01:57]} 37. Ra7+ {[%emt
00:00:01] [%clk 00:00:24]} Kh6 {[%clk 00:01:58]} 38. h4 {[%emt 00:00:07] [%clk
00:00:19]} Rc1+ {[%emt 00:00:03] [%clk 00:01:57]} 39. Kg2 {[%emt 00:00:02] [%clk
00:00:20]} Bd5+ {[%emt 00:00:01] [%clk 00:01:58]} 40. f3 {[%clk 00:00:21]} Rc2+
{[%emt 00:00:03] [%clk 00:01:56]} 0-1

[Site "Europe Echecs"]

[Event "Championnat d'Europe de Blitz"]
[Date "2024.12.09"]
[White "Krallis, Christos"]
[Black "Mastrovasilis, Dimitrios"]
[WhiteElo "2383"]
[BlackElo "2537"]
[Round "4.14"]
[Result "1-0"]
[TimeControl "180+2"]

1. e4 {[%emt 00:00:02] [%clk 00:03:00]} c5 {[%emt 00:00:06] [%clk 00:02:59]} 2.
Nf3 {[%emt 00:00:02] [%clk 00:03:00]} e6 {[%emt 00:00:02] [%clk 00:02:59]} 3. c3
{[%emt 00:00:05] [%clk 00:02:57]} Nf6 {[%emt 00:00:04] [%clk 00:02:56]} 4. Bd3
{[%emt 00:00:10] [%clk 00:02:49]} d5 {[%emt 00:00:30] [%clk 00:02:28]} 5. e5
{[%emt 00:00:03] [%clk 00:02:48]} Nfd7 {[%emt 00:00:02] [%clk 00:02:28]} 6. Bc2
{[%emt 00:00:14] [%clk 00:02:37]} d4 {[%emt 00:00:02] [%clk 00:02:28]} 7. O-O
{[%emt 00:00:11] [%clk 00:02:28]} Nc6 {[%emt 00:00:03] [%clk 00:02:27]} 8. Re1
{[%emt 00:00:05] [%clk 00:02:25]} Be7 {[%emt 00:00:15] [%clk 00:02:14]} 9. Qe2
{[%emt 00:00:18] [%clk 00:02:08]} b6 {[%emt 00:00:35] [%clk 00:01:42]} 10. b4
{[%emt 00:00:35] [%clk 00:01:35]} cxb4 {[%emt 00:00:37] [%clk 00:01:07]} 11.
cxd4 {[%emt 00:00:03] [%clk 00:01:35]} Bb7 {[%emt 00:00:01] [%clk 00:01:07]} 12.
d5 {[%emt 00:00:05] [%clk 00:01:31]} exd5 {[%emt 00:00:17] [%clk 00:00:53]} 13.
e6 {[%clk 00:01:32]} O-O {[%emt 00:00:05] [%clk 00:00:50]} 14. exd7 {[%emt
00:00:14] [%clk 00:01:20]} Bf6 {[%emt 00:00:01] [%clk 00:00:51]} 15. d4 {[%emt
00:00:02] [%clk 00:01:20]} Qxd7 {[%emt 00:00:09] [%clk 00:00:44]} 16. Qd3 {[%emt
00:00:17]} g6 {[%emt 00:00:04] [%clk 00:00:37]} 17. Bh6 {[%emt 00:00:03] [%clk
00:01:09]} Rfe8 {[%emt 00:00:02] [%clk 00:00:37]} 18. Nbd2 {[%emt 00:00:01]
[%clk 00:01:09]} Rxe1+ {[%emt 00:00:14] [%clk 00:00:26]} 19. Rxe1 {[%clk
00:01:10]} Re8 {[%clk 00:00:27]} 20. Rxe8+ {[%emt 00:00:11] [%clk 00:01:00]}
Qxe8 {[%emt 00:00:02] [%clk 00:00:28]} 21. h4 {[%emt 00:00:05] [%clk 00:00:57]}
Bc8 {[%emt 00:00:04] [%clk 00:00:26]} 22. Qb5 {[%emt 00:00:15] [%clk 00:00:45]}
Qe6 {[%emt 00:00:09] [%clk 00:00:18]} 23. Bb3 {[%emt 00:00:06] [%clk 00:00:41]}
Nxd4 {[%emt 00:00:08] [%clk 00:00:13]} 24. Nxd4 {[%emt 00:00:03] [%clk
00:00:39]} Bxd4 {[%emt 00:00:02] [%clk 00:00:14]} 25. Nf3 {[%emt 00:00:02] [%clk
00:00:38]} Bc5 {[%emt 00:00:04] [%clk 00:00:12]} 26. Bxd5 {[%emt 00:00:05] [%clk
00:00:36]} Bd7 {[%emt 00:00:02] [%clk 00:00:12]} 27. Qc4 {[%emt 00:00:03] [%clk
00:00:35]} Qe7 {[%emt 00:00:04] [%clk 00:00:10]} 28. Qf4 {[%emt 00:00:01] [%clk
00:00:35]} Qe8 {[%emt 00:00:07] [%clk 00:00:05]} 29. Qf6 {[%emt 00:00:02] [%clk
00:00:35]} Bf8 {[%emt 00:00:02] [%clk 00:00:05]} 30. Ng5 {[%emt 00:00:03] [%clk
00:00:34]} Be6 {[%emt 00:00:05] [%clk 00:00:00]} 1-0

[Site "Europe Echecs"]

[Event "Championnat d'Europe de Blitz"]
[Date "2024.12.09"]
[White "Smeets, Jan"]
[Black "Larkin, Vladyslav"]
[WhiteElo "2552"]
[BlackElo "2449"]
[Round "4.15"]
[Result "0-1"]
[TimeControl "180+2"]

1. e4 {[%clk 00:03:03]} d6 {[%emt 00:00:01] [%clk 00:03:04]} 2. d4 {[%emt
00:00:03] [%clk 00:03:04]} Nf6 {[%clk 00:03:05]} 3. Nc3 {[%clk 00:03:05]} c6
{[%clk 00:03:06]} 4. f4 {[%emt 00:00:08] [%clk 00:02:59]} Qa5 {[%emt 00:00:01]
[%clk 00:03:07]} 5. Bd3 {[%emt 00:00:25] [%clk 00:02:35]} e5 {[%emt 00:00:01]
[%clk 00:03:08]} 6. Nf3 {[%emt 00:00:22] [%clk 00:02:15]} exd4 {[%emt 00:00:03]
[%clk 00:03:08]} 7. Nxd4 {[%emt 00:00:02] [%clk 00:02:15]} Qb6 {[%emt 00:00:01]
[%clk 00:03:09]} 8. Nb3 {[%emt 00:00:34] [%clk 00:01:42]} a5 {[%emt 00:00:01]
[%clk 00:03:10]} 9. a4 {[%emt 00:00:01] [%clk 00:01:44]} Na6 {[%emt 00:00:02]
[%clk 00:03:10]} 10. Qe2 {[%emt 00:00:02] [%clk 00:01:43]} Bg4 {[%emt 00:00:02]
[%clk 00:03:11]} 11. Qe3 {[%emt 00:00:16] [%clk 00:01:29]} Qxe3+ {[%emt
00:00:46] [%clk 00:02:27]} 12. Bxe3 {[%emt 00:00:01] [%clk 00:01:30]} Nb4 {[%emt
00:00:02] [%clk 00:02:27]} 13. f5 {[%emt 00:00:11]} d5 {[%clk 00:02:26]} 14. e5
{[%emt 00:00:19] [%clk 00:01:05]} Nd7 {[%emt 00:00:11] [%clk 00:02:18]} 15. O-O
{[%emt 00:00:03] [%clk 00:01:04]} Nxd3 {[%emt 00:00:15] [%clk 00:02:04]} 16.
cxd3 {[%emt 00:00:02] [%clk 00:01:05]} g6 {[%emt 00:00:02] [%clk 00:02:04]} 17.
e6 {[%emt 00:00:29] [%clk 00:00:38]} fxe6 {[%emt 00:00:05] [%clk 00:02:00]} 18.
fxe6 {[%emt 00:00:01] [%clk 00:00:38]} Bxe6 {[%emt 00:00:06] [%clk 00:01:56]}
19. Bd4 {[%emt 00:00:02] [%clk 00:00:39]} Rg8 {[%emt 00:00:12] [%clk 00:01:46]}
20. Rae1 {[%emt 00:00:02] [%clk 00:00:38]} Ke7 {[%clk 00:01:47]} 21. Bc5+ {[%emt
00:00:18] [%clk 00:00:23]} Kd8 {[%emt 00:00:13] [%clk 00:01:36]} 22. Bxf8 {[%emt
00:00:01] [%clk 00:00:24]} Nxf8 {[%emt 00:00:01] [%clk 00:01:37]} 23. Rxf8+
{[%emt 00:00:01] [%clk 00:00:24]} Rxf8 {[%clk 00:01:39]} 24. Rxe6 {[%emt
00:00:01] [%clk 00:00:25]} Rf7 {[%emt 00:00:03] [%clk 00:01:38]} 25. Ne2 {[%emt
00:00:20] [%clk 00:00:07]} Kc7 {[%emt 00:00:02] [%clk 00:01:38]} 26. h3 {[%emt
00:00:02] [%clk 00:00:06]} Ra6 {[%emt 00:00:07] [%clk 00:01:33]} 27. Nc5 {[%emt
00:00:05] [%clk 00:00:04]} Ra8 {[%emt 00:00:05] [%clk 00:01:30]} 28. d4 {[%emt
00:00:01] [%clk 00:00:04]} Raf8 {[%emt 00:00:01] [%clk 00:01:30]} 29. Nd3 {[%emt
00:00:02] [%clk 00:00:05]} Rf1+ {[%emt 00:00:17] [%clk 00:01:15]} 30. Kh2 {[%clk
00:00:06]} R8f7 {[%clk 00:01:17]} 31. Ne5 {[%clk 00:00:07]} Rg7 {[%clk
00:01:18]} 32. Re8 {[%emt 00:00:04] [%clk 00:00:05]} Rb1 {[%emt 00:00:04] [%clk
00:01:17]} 33. Nf4 {[%emt 00:00:03] [%clk 00:00:04]} Kd6 {[%emt 00:00:24] [%clk
00:00:55]} 34. Ne6 {[%emt 00:00:04] [%clk 00:00:00]} Re7 {[%emt 00:00:04]} 35.
Rxe7 {[%emt 00:00:01]} Kxe7 {[%emt 00:00:02] [%clk 00:00:55]} 36. Nc5 {[%emt
00:00:02] [%clk 00:00:00]} Rxb2 {[%emt 00:00:01] [%clk 00:00:55]} 37. Ned3
{[%clk 00:00:00]} Rb1 {[%emt 00:00:05]} 38. Ne5 Kd6 {[%emt 00:00:05]} 39. Kg3 b6
{[%emt 00:00:02] [%clk 00:00:55]} 40. Ncd3 {[%emt 00:00:02] [%clk 00:00:00]} c5
{[%emt 00:00:04]} 41. Kf4 {[%emt 00:00:01]} 0-1

[Site "Europe Echecs"]